bitfinex-derivatives/quotes_BTCF0:USTF0_20250620
["timestamp","ask_amount","ask_price","bid_price","bid_amount"]
[1750460826819,0.001,103190.0,103180.0,2.02132363]
[1750460827616,0.00517407,103190.0,103180.0,2.02132363]
[1750460830724,0.02775224,103190.0,103180.0,2.02132363]
[1750460831919,0.02775224,103190.0,103180.0,1.76226467]
[1750460832626,0.02775224,103190.0,103180.0,2.02156363]
[1750460832816,0.02775224,103190.0,103180.0,2.02196363]
[1750460833016,0.02775224,103190.0,103180.0,1.76290467]
[1750460833231,0.02775224,103190.0,103180.0,2.02196363]
[1750460834628,0.02775224,103190.0,103180.0,2.02444363]
[1750460835027,0.02775224,103190.0,103180.0,1.76538467]
[1750460835325,0.02775224,103190.0,103180.0,2.02444363]
[1750460837119,0.02775224,103190.0,103180.0,1.76538467]
[1750460837321,0.02775224,103190.0,103180.0,2.02444363]
[1750460841629,4e-08,103190.0,103180.0,2.79732659]
[1750460841835,0.42120925,103220.0,103210.0,0.1937618]
[1750460842134,0.15356102,103220.0,103210.0,1.55956766]
[1750460842433,0.34730402,103220.0,103210.0,1.3005087]
[1750460843024,0.60636298,103220.0,103210.0,1.3007487]
[1750460843334,0.60836298,103220.0,103210.0,1.3021487]
[1750460843832,0.61814543,103220.0,103210.0,1.3021487]
[1750460845637,0.6973728,103220.0,103210.0,1.3021487]
[1750460845936,0.43831384,103220.0,103210.0,1.3021487]
[1750460846137,0.6973728,103220.0,103210.0,1.3021487]
[1750460848733,0.24457084,103220.0,103210.0,1.3021487]
[1750460849040,0.43831374,103220.0,103210.0,1.3021487]
[1750460849334,0.43831374,103220.0,103210.0,1.56120766]
[1750460849541,0.24457084,103220.0,103210.0,1.56120766]
[1750460849838,0.13888839,103220.0,103210.0,1.62400766]
[1750460850236,0.13888839,103220.0,103210.0,1.00520766]
[1750460850237,0.002,103220.0,103210.0,1.00520766]
[1750460850535,0.002,103220.0,103210.0,1.62216766]
[1750460852242,0.002,103220.0,103210.0,1.63194035]
[1750460854445,0.002,103220.0,103210.0,0.86554035]
[1750460854741,0.002,103220.0,103210.0,1.62148766]
[1750460854934,0.00617407,103220.0,103210.0,0.85576766]
[1750460855135,0.00617407,103220.0,103210.0,1.62196766]
[1750460855334,0.00617407,103220.0,103210.0,1.62180766]
[1750460855843,0.00617407,103220.0,103210.0,1.62140766]
[1750460856146,0.00617407,103220.0,103210.0,1.62180766]
[1750460856340,0.45897603,103220.0,103210.0,0.7137087]
[1750460856547,0.49057603,103220.0,103210.0,1.3303487]
[1750460856743,0.26281707,103220.0,103210.0,1.58940766]
[1750460856943,0.26281707,103220.0,103210.0,1.57995724]
[1750460857246,0.26281707,103220.0,103210.0,1.32049828]
[1750460857551,0.52187603,103220.0,103210.0,1.28949828]
[1750460857740,0.26281707,103220.0,103210.0,1.54815724]
[1750460858543,0.26281707,103220.0,103210.0,1.54855724]
[1750460858946,0.26281707,103220.0,103210.0,1.28949828]
[1750460861551,0.26281707,103220.0,103210.0,0.52345828]
[1750460861552,0.52187603,103220.0,103210.0,0.52345828]
[1750460861854,0.57953705,103220.0,103210.0,1.14013828]
[1750460862149,0.37961998,103220.0,103210.0,1.14057828]
[1750460862354,0.31430402,103220.0,103210.0,1.14057828]
[1750460862552,0.57336298,103220.0,103210.0,1.14057828]
[1750460863051,0.57753705,103220.0,103210.0,1.14057828]
[1750460867053,0.31847809,103220.0,103210.0,1.17097828]
[1750460867253,0.09343509,103220.0,103210.0,1.43003724]
[1750460867651,0.09343509,103220.0,103210.0,1.46123724]
[1750460868347,0.06183509,103220.0,103210.0,1.46123724]
[1750460868552,0.00417407,103220.0,103210.0,1.46123724]
[1750460869455,0.00417407,103220.0,103210.0,1.45178548]
[1750460869945,0.19791697,103220.0,103210.0,1.45178548]
[1750460871154,0.00417407,103220.0,103210.0,1.45178548]
[1750460871663,0.19791697,103220.0,103210.0,1.45178548]
[1750460872047,0.00417407,103220.0,103210.0,1.45178548]
[1750460875153,0.00417407,103220.0,103210.0,1.64555348]
[1750460878861,0.001,103250.0,103240.0,0.1937054]
[1750460879063,0.001,103250.0,103240.0,2.02661402]
[1750460879264,0.001,103250.0,103240.0,2.05781402]
[1750460879563,0.001,103250.0,103240.0,1.73495506]
[1750460879764,0.0637,103250.0,103240.0,1.73495506]
[1750460880266,0.2593867,103250.0,103240.0,1.73495506]
[1750460880468,0.2895867,103250.0,103240.0,1.70375506]
[1750460880655,0.54864566,103250.0,103240.0,0.93315506]
[1750460880965,0.54864566,103250.0,103240.0,1.70383506]
[1750460881265,0.54864566,103250.0,103240.0,1.70343506]
[1750460881465,0.57125962,103250.0,103240.0,1.70383506]
[1750460881766,0.57325962,103250.0,103240.0,1.70483506]
[1750460881962,0.57325962,103250.0,103240.0,0.93415506]
[1750460882166,0.57325962,103250.0,103240.0,1.55431506]
[1750460882868,0.57325962,103250.0,103240.0,1.55391506]
[1750460883169,0.57325962,103250.0,103240.0,1.55431506]
[1750460883367,0.12051396,103250.0,103240.0,1.55431506]
[1750460883559,0.12051396,103250.0,103240.0,1.87627402]
[1750460884571,0.12468803,103250.0,103240.0,1.87627402]
[1750460885568,0.07838251,103280.0,103240.0,2.83793958]
[1750460885767,0.05879002,103280.0,103270.0,1.17430816]
[1750460885962,0.001,103280.0,103270.0,1.96437306]
[1750460886157,0.001,103280.0,103270.0,1.99467306]
[1750460886567,0.001,103280.0,103270.0,1.22215306]
[1750460886868,0.002,103280.0,103270.0,1.99475306]
[1750460887065,0.002,103280.0,103270.0,1.99515306]
[1750460887264,0.003,103280.0,103270.0,1.99515306]
[1750460887473,0.002,103280.0,103270.0,1.99515306]
[1750460887664,0.002,103280.0,103270.0,1.99915306]
[1750460887865,0.003,103280.0,103270.0,2.00715306]
[1750460888565,0.003,103280.0,103270.0,2.08580718]
[1750460888762,0.003,103280.0,103270.0,2.14930718]
[1750460890672,0.003,103280.0,103270.0,1.37670718]
[1750460890871,0.003,103280.0,103270.0,2.21210154]
[1750460891071,0.003,103280.0,103270.0,1.44002154]
[1750460891265,0.003,103280.0,103270.0,2.21154154]
[1750460891768,0.003,103280.0,103270.0,1.88876822]
[1750460891969,0.003,103280.0,103270.0,2.21154154]
[1750460892362,0.003,103280.0,103270.0,1.88916822]
[1750460892562,0.003,103280.0,103270.0,2.21154154]
[1750460892971,0.003,103280.0,103270.0,1.88916822]
[1750460893270,0.003,103280.0,103270.0,2.21154154]
[1750460896964,0.003,103280.0,103270.0,2.17944154]
[1750460897165,0.003,103280.0,103270.0,2.17904154]
[1750460897370,0.003,103280.0,103270.0,2.17944154]
[1750460898878,0.003,103280.0,103270.0,2.14824154]
[1750460899078,0.1002,103280.0,103270.0,2.14824154]
[1750460899473,0.1002,103280.0,103270.0,1.37652154]
[1750460899673,0.10437407,103280.0,103270.0,0.93534954]
[1750460899873,0.10437407,103280.0,103270.0,1.70694954]
[1750460900375,0.10437407,103280.0,103270.0,0.93574954]
[1750460900569,0.10437407,103280.0,103270.0,1.70694954]
[1750460900765,0.10437407,103280.0,103270.0,1.70654954]
[1750460900965,0.10437407,103280.0,103270.0,1.70694954]
[1750460902871,0.10437407,103280.0,103270.0,1.34614954]
[1750460904376,0.29800437,103280.0,103270.0,0.57494954]
[1750460904572,0.193649,103270.0,103260.0,0.3389003]
[1750460904877,0.93902232,103270.0,103260.0,0.9617803]
[1750460905077,0.93902232,103270.0,103260.0,0.93084664]
[1750460905278,0.93902232,103270.0,103260.0,0.93044664]
[1750460905478,1.13270233,103270.0,103260.0,0.93084664]
[1750460905776,1.44035094,103270.0,103260.0,0.93184664]
[1750460905966,1.44035094,103270.0,103260.0,0.30924664]
[1750460906163,0.86797762,103270.0,103260.0,0.30924664]
[1750460906362,1.19035094,103270.0,103260.0,0.30924664]
[1750460907079,0.99667093,103270.0,103260.0,0.30924664]
[1750460907276,0.67429761,103270.0,103260.0,0.30924664]
[1750460907476,0.12184861,103270.0,103260.0,0.31024664]
[1750460907773,0.31549771,103270.0,103260.0,0.30924664]
[1750460907974,0.0632,103270.0,103260.0,0.30824664]
[1750460908173,0.2608491,103270.0,103260.0,0.30924664]
[1750460908868,0.0672,103270.0,103260.0,0.30924664]
[1750460909779,0.0672,103270.0,103260.0,0.66059926]
[1750460910085,0.0672,103270.0,103260.0,0.69319926]
[1750460910384,0.0672,103270.0,103260.0,1.28223926]
[1750460912486,0.0672,103270.0,103260.0,1.31263926]
[1750460913172,0.0672,103270.0,103260.0,1.28223926]
[1750460914279,0.2608491,103270.0,103260.0,1.28223926]
[1750460914882,0.51887693,103270.0,103260.0,1.28223926]
[1750460915076,0.57652554,103270.0,103260.0,1.28223926]
[1750460915880,0.58069961,103270.0,103260.0,1.28223926]
[1750460917276,0.58069961,103270.0,103260.0,0.57323034]
[1750460917479,0.58069961,103270.0,103260.0,0.83343034]
[1750460917676,0.58069961,103270.0,103260.0,0.21203034]
[1750460917885,0.58069961,103270.0,103260.0,0.21243034]
[1750460919587,0.32267178,103270.0,103260.0,0.21243034]
[1750460919778,0.58069961,103270.0,103260.0,0.21243034]
[1750460922689,0.94149961,103270.0,103260.0,0.0014]
[1750460922986,0.1936866,103250.0,103240.0,0.2913468]
[1750460923186,0.87025409,103250.0,103240.0,0.0008]
[1750460923376,1.12606609,103250.0,103240.0,0.0008]
[1750460923680,1.13602467,103250.0,103240.0,0.0008]
[1750460923886,0.1937054,103240.0,103230.0,0.3949786]
[1750460924083,0.9638546,103240.0,103230.0,0.3949786]
[1750460924481,0.9638546,103240.0,103230.0,0.3953786]
[1750460925475,0.70682677,103240.0,103230.0,0.3509642]
[1750460925675,0.68318529,103240.0,103230.0,0.7157642]
[1750460926287,0.68218529,103240.0,103230.0,0.7137642]
[1750460926585,0.39345746,103240.0,103230.0,0.7137642]
[1750460926885,0.65148529,103240.0,103230.0,0.7413642]
[1750460928389,0.68158529,103240.0,103230.0,0.7413642]
[1750460928588,0.68158529,103240.0,103230.0,0.7107642]
[1750460928888,1.04238529,103240.0,103230.0,0.3499642]
[1750460929588,0.78435746,103240.0,103230.0,0.3499642]
[1750460929782,1.04238529,103240.0,103230.0,0.3499642]
[1750460930088,0.68158529,103240.0,103230.0,0.3499642]
[1750460931184,0.68575936,103240.0,103230.0,0.3499642]
[1750460932174,0.68575936,103240.0,103230.0,0.7107642]
[1750460932383,0.68575936,103240.0,103230.0,0.7409642]
[1750460933980,0.68575936,103240.0,103230.0,0.3801642]
[1750460934186,0.68575936,103240.0,103230.0,0.7409642]
[1750460935781,0.68575936,103240.0,103230.0,0.7107642]
[1750460939788,0.42773153,103240.0,103230.0,0.7107642]
[1750460939988,0.68575936,103240.0,103230.0,0.7107642]
[1750460940290,0.68575936,103240.0,103230.0,0.3499642]
[1750460941792,1.04655936,103240.0,103230.0,0.3499641]
[1750460941994,0.68575936,103240.0,103230.0,0.3499641]
[1750460942197,0.65565936,103240.0,103230.0,0.3499641]
[1750460942494,0.65565936,103240.0,103230.0,0.3831641]
[1750460942786,0.65565936,103240.0,103230.0,0.7759641]
[1750460943580,0.65565936,103240.0,103230.0,0.7439641]
[1750460943787,0.68885936,103240.0,103230.0,0.7439641]
[1750460944987,0.68885936,103240.0,103230.0,0.3831641]
[1750460947891,0.68885936,103240.0,103230.0,0.7439641]
[1750460949896,0.68885936,103240.0,103230.0,0.3831641]
[1750460951097,0.68885936,103240.0,103230.0,0.2303241]
[1750460951693,0.63113799,103240.0,103230.0,0.2303241]
[1750460951995,0.63113799,103240.0,103230.0,0.1971241]
[1750460952197,0.63113799,103240.0,103230.0,0.1967241]
[1750460952499,0.63113799,103240.0,103230.0,0.1971241]
[1750460952692,0.7085205,103240.0,103230.0,0.1971241]
[1750460953791,0.5148151,103240.0,103230.0,0.1971241]
[1750460953991,0.7085205,103240.0,103230.0,0.1971241]
[1750460954199,0.7085205,103240.0,103230.0,0.18767386]
[1750460958104,0.63113799,103240.0,103230.0,0.18767386]
[1750460958499,0.7085205,103240.0,103230.0,0.18767386]
[1750460958804,0.63113799,103240.0,103230.0,0.18767386]
[1750460959004,0.7085205,103240.0,103230.0,0.18767386]
[1750460959903,0.59793799,103240.0,103230.0,0.57997386]
[1750460960102,0.59793799,103240.0,103230.0,0.61277386]
[1750460960302,0.59693799,103240.0,103230.0,0.61277386]
[1750460960511,0.59793799,103240.0,103230.0,0.61377386]
[1750460961004,0.59793799,103240.0,103230.0,0.25297386]
[1750460961206,0.37989461,103240.0,103230.0,0.64517386]
[1750460961594,0.38406868,103240.0,103230.0,0.64517386]
[1750460961898,0.41576868,103240.0,103230.0,0.64517386]
[1750460963008,0.4933295,103240.0,103230.0,0.64517386]
[1750460967305,0.4933295,103240.0,103230.0,0.28437386]
[1750460968110,0.57071201,103240.0,103230.0,0.28437386]
[1750460969413,0.57071201,103240.0,103230.0,0.290824]
[1750460969610,0.57071201,103240.0,103230.0,0.195124]
[1750460969813,0.60151201,103240.0,103230.0,0.194724]
[1750460970013,0.60151201,103240.0,103230.0,0.195124]
[1750460970901,0.53901201,103240.0,103230.0,0.555924]
[1750460971102,0.4616295,103240.0,103230.0,0.619824]
[1750460973013,0.4616295,103240.0,103230.0,0.259024]
[1750460973214,0.4616295,103240.0,103230.0,0.619824]
[1750460973815,0.4616295,103240.0,103230.0,0.259024]
[1750460974615,0.53901201,103240.0,103230.0,0.259024]
[1750460974916,0.4616295,103240.0,103230.0,0.619824]
[1750460976116,0.4616295,103240.0,103230.0,0.259024]
[1750460976418,0.4616295,103240.0,103230.0,0.619824]
[1750460976616,0.28098418,103240.0,103230.0,0.619824]
[1750460976916,0.53901201,103240.0,103230.0,0.619824]
[1750460980418,0.4616295,103240.0,103230.0,0.619824]
[1750460981817,0.08273489,103240.0,103230.0,0.87785183]
[1750460982114,0.14072405,103240.0,103230.0,0.87785183]
[1750460982714,0.14072405,103240.0,103230.0,1.13587966]
[1750460982915,0.03296932,103240.0,103230.0,1.57961566]
[1750460983112,0.05798916,103250.0,103240.0,0.21141763]
[1750460983311,0.06766169,103260.0,103250.0,0.1936866]
[1750460983522,0.05798916,103260.0,103250.0,0.87391443]
[1750460983918,0.05798916,103260.0,103250.0,0.6158866]
[1750460984624,0.003,103260.0,103250.0,0.87491443]
[1750460984821,0.00717407,103260.0,103250.0,0.87491443]
[1750460985014,0.08568826,103260.0,103250.0,0.87491443]
[1750460985214,0.00917407,103260.0,103250.0,0.87591443]
[1750460985826,0.005,103260.0,103250.0,0.87591443]
[1750460986116,0.003,103260.0,103250.0,0.6168866]
[1750460986322,0.003,103260.0,103250.0,0.90631443]
[1750460986920,0.003,103260.0,103250.0,1.67231443]
[1750460987224,0.67079269,103270.0,103260.0,0.1936679]
[1750460987416,0.67079269,103270.0,103260.0,0.5544679]
[1750460988023,0.55044191,103270.0,103260.0,0.5544679]
[1750460988226,0.06776428,103270.0,103260.0,0.87639573]
[1750460988526,0.01177512,103270.0,103260.0,0.87739573]
[1750460989127,0.01377512,103270.0,103260.0,0.87839573]
[1750460989427,0.09026168,103270.0,103260.0,0.87839573]
[1750460989627,0.004,103270.0,103260.0,0.6203679]
[1750460990015,0.00817407,103270.0,103260.0,0.87839573]
[1750460990916,0.004,103270.0,103260.0,0.87839573]
[1750460991118,0.01380625,103270.0,103260.0,0.87839573]
[1750460991319,0.004,103270.0,103260.0,0.87839573]
[1750460991921,0.00817407,103270.0,103260.0,0.6203679]
[1750460992122,0.00817407,103270.0,103260.0,0.87839573]
[1750460993124,0.08732192,103270.0,103260.0,0.87839573]
[1750460993428,0.00817407,103270.0,103260.0,0.87839573]
[1750460993823,0.01806723,103270.0,103260.0,0.87839573]
[1750460994215,0.00817407,103270.0,103260.0,0.87839573]
[1750460996725,0.20182317,103270.0,103260.0,0.87839573]
[1750460996933,0.20182317,103270.0,103260.0,1.3205479]
[1750460996934,0.459851,103270.0,103260.0,1.3205479]
[1750460997233,0.555151,103270.0,103260.0,0.3453079]
[1750460997431,0.555151,103270.0,103260.0,0.3457079]
[1750460998021,0.63118315,103270.0,103260.0,0.3457079]
[1750460998531,0.64068724,103270.0,103260.0,0.1960679]
[1750460998727,0.6986764,103270.0,103260.0,0.1956679]
[1750460998922,0.6986764,103270.0,103260.0,0.1960679]
[1750461008437,0.64068724,103270.0,103260.0,0.1960678]
[1750461009439,0.38265941,103270.0,103260.0,0.1960678]
[1750461009638,0.64068724,103270.0,103260.0,0.1960678]
[1750461010444,0.64068724,103270.0,103260.0,0.0024]
[1750461011139,0.71806975,103270.0,103260.0,0.0024]
[1750461011438,0.71806975,103270.0,103260.0,0.1960677]
[1750461011938,0.64068724,103270.0,103260.0,0.1960677]
[1750461012139,0.71806975,103270.0,103260.0,0.1960677]
[1750461012533,0.71806975,103270.0,103260.0,0.1866197]
[1750461015439,0.64068724,103270.0,103260.0,0.1866197]
[1750461016742,0.1936866,103250.0,103240.0,0.81948923]
[1750461017042,0.50965085,103250.0,103240.0,0.41026353]
[1750461017247,0.60125085,103250.0,103240.0,0.41026353]
[1750461017943,0.60225085,103250.0,103240.0,0.41126353]
[1750461018245,0.60325085,103250.0,103240.0,0.41526353]
[1750461019841,0.60525085,103250.0,103240.0,0.41526353]
[1750461020250,0.60725085,103250.0,103240.0,0.41226353]
[1750461021451,0.61142492,103250.0,103240.0,0.41226353]
[1750461022347,0.35339709,103250.0,103240.0,0.41226353]
[1750461022552,0.61142492,103250.0,103240.0,0.41226353]
[1750461023764,0.35339709,103250.0,103240.0,0.41226353]
[1750461023950,0.61139088,103250.0,103240.0,0.41226353]
[1750461025660,0.35336305,103250.0,103240.0,0.41226353]
[1750461025851,0.61139088,103250.0,103240.0,0.41226353]
[1750461026253,0.41743585,103250.0,103240.0,0.41226353]
[1750461026452,0.55322007,103250.0,103240.0,0.41226353]
[1750461026856,0.91402007,103250.0,103240.0,0.0028]
[1750461027056,0.99140258,103250.0,103240.0,0.0028]
[1750461027253,1.12790201,103250.0,103240.0,0.0028]
[1750461029364,1.12790201,103250.0,103240.0,0.1965054]
[1750461029770,1.0505195,103250.0,103240.0,0.1965054]
[1750461033271,0.6897195,103250.0,103240.0,0.1965054]
[1750461033473,0.6897195,103250.0,103240.0,0.5573054]
[1750461033661,0.76710201,103250.0,103240.0,0.5573054]
[1750461033862,0.43169167,103250.0,103240.0,0.5573054]
[1750461034063,0.6897195,103250.0,103240.0,0.5573054]
[1750461034968,0.6897195,103250.0,103240.0,0.1965054]
[1750461036373,0.76710201,103250.0,103240.0,0.1965054]
[1750461036869,0.76710201,103250.0,103240.0,0.0028]
[1750461037175,0.6897195,103250.0,103240.0,0.0028]
[1750461037363,0.76710201,103250.0,103240.0,0.0028]
[1750461037561,0.1937054,103240.0,103230.0,0.7629015]
[1750461037771,0.50967948,103240.0,103230.0,0.7629015]
[1750461038876,0.54147948,103240.0,103230.0,0.7629015]
[1750461039078,0.54347948,103240.0,103230.0,0.7649015]
[1750461041180,0.54347948,103240.0,103230.0,0.2272241]
[1750461041364,0.57487948,103240.0,103230.0,0.2272241]
[1750461041878,0.54347948,103240.0,103230.0,0.2272241]
[1750461042873,0.28545165,103240.0,103230.0,0.1957241]
[1750461043075,0.54347948,103240.0,103230.0,0.1957241]
[1750461043582,0.54347948,103240.0,103230.0,0.2288241]
[1750461044580,0.48553323,103240.0,103230.0,0.2288241]
[1750461044780,0.54352549,103240.0,103230.0,0.2288241]
[1750461045280,0.48553323,103240.0,103230.0,0.2288241]
[1750461050284,0.48553323,103240.0,103230.0,0.5896241]
[1750461050785,0.4897073,103240.0,103230.0,0.5896241]
[1750461051782,0.23167947,103240.0,103230.0,0.5896241]
[1750461052082,0.19987947,103240.0,103230.0,0.6217241]
[1750461052479,0.00617407,103240.0,103230.0,1.02935193]
[1750461052679,0.06422374,103240.0,103230.0,1.01990231]
[1750461052986,0.06004967,103240.0,103230.0,1.0199948]
[1750461053586,0.06004967,103240.0,103230.0,1.2137308]
[1750461054073,0.06004967,103240.0,103230.0,1.0199948]
[1750461054279,0.002,103240.0,103230.0,1.0199948]
[1750461054582,0.002,103240.0,103230.0,1.27811512]
[1750461054782,0.002,103240.0,103230.0,1.21370868]
[1750461056381,0.002,103240.0,103230.0,1.72180688]
[1750461056589,0.002,103240.0,103230.0,2.33596688]
[1750461057279,0.002,103240.0,103230.0,1.72180688]
[1750461058678,0.002,103240.0,103230.0,2.33592688]
[1750461060684,0.002,103240.0,103230.0,2.41431783]
[1750461060881,0.05804967,103260.0,103250.0,0.1936866]
[1750461061085,0.46487941,103270.0,103260.0,0.1936678]
[1750461061289,0.36803501,103270.0,103260.0,0.6192678]
[1750461061585,0.14358591,103270.0,103260.0,0.907866]
[1750461061787,0.08553624,103270.0,103260.0,0.907866]
[1750461061993,0.6283145,103280.0,103270.0,0.193649]
[1750461062284,0.6283145,103280.0,103270.0,1.200829]
[1750461063086,0.4683942,103280.0,103270.0,1.200829]
[1750461063590,0.4683942,103280.0,103270.0,1.350269]
[1750461063896,0.41034453,103280.0,103270.0,1.36788404]
[1750461064095,0.41034453,103280.0,103270.0,1.40048404]
[1750461064290,0.4733942,103280.0,103270.0,1.40148404]
[1750461064486,0.55336603,103280.0,103270.0,1.40148404]
[1750461064991,0.5575401,103280.0,103270.0,1.36888404]
[1750461065486,0.75258863,103280.0,103270.0,1.36788404]
[1750461065690,0.78658863,103280.0,103270.0,1.36888404]
[1750461065891,0.79632158,103280.0,103270.0,1.36888404]
[1750461066985,0.53822338,103280.0,103270.0,1.36888404]
[1750461067986,0.79632158,103280.0,103270.0,1.36888404]
[1750461068183,0.53822338,103280.0,103270.0,1.36888404]
[1750461068387,0.79632158,103280.0,103270.0,1.36888404]
[1750461070091,0.53822338,103280.0,103270.0,1.36888404]
[1750461071402,0.79632158,103280.0,103270.0,1.36888404]
[1750461074092,0.53822338,103280.0,103270.0,1.36888404]
[1750461074294,0.79632158,103280.0,103270.0,1.36888404]
[1750461074998,0.53822338,103280.0,103270.0,1.36888404]
[1750461077891,0.59627305,103280.0,103270.0,1.36888404]
[1750461078494,0.85437125,103280.0,103270.0,1.36888404]
[1750461078694,0.59627305,103280.0,103270.0,1.36888404]
[1750461079395,0.85437125,103280.0,103270.0,1.36888404]
[1750461082701,0.85437125,103280.0,103270.0,0.57306404]
[1750461082901,0.79632158,103280.0,103270.0,0.96601772]
[1750461083195,1.23450409,103280.0,103270.0,0.62021952]
[1750461083794,1.23450409,103280.0,103270.0,0.00641952]
[1750461085798,0.97640589,103280.0,103270.0,0.00641952]
[1750461086001,1.23450409,103280.0,103270.0,0.00641952]
[1750461087805,1.53537877,103280.0,103270.0,0.0014]
[1750461088304,1.53537877,103280.0,103270.0,0.001]
[1750461088600,1.45799626,103280.0,103270.0,0.0014]
[1750461089404,0.1936679,103260.0,103250.0,0.3397355]
[1750461089602,0.5097762,103260.0,103250.0,0.3397355]
[1750461089902,0.5735762,103260.0,103250.0,0.3389355]
[1750461090200,0.5735762,103260.0,103250.0,0.3393355]
[1750461090593,0.9353762,103260.0,103250.0,0.3413355]
[1750461090790,0.9353762,103260.0,103250.0,0.292914]
[1750461091096,0.8773661,103260.0,103250.0,0.292914]
[1750461091501,0.8783661,103260.0,103250.0,0.297914]
[1750461093097,0.8783661,103260.0,103250.0,0.0074]
[1750461093298,0.8783661,103260.0,103250.0,0.2006866]
[1750461093494,0.8783661,103260.0,103250.0,0.2010866]
[1750461093692,0.8783661,103260.0,103250.0,0.0074]
[1750461094504,1.1364643,103260.0,103250.0,0.0074]
[1750461095000,1.1384643,103260.0,103250.0,0.0064]
[1750461095303,1.1424643,103260.0,103250.0,0.0024]
[1750461095503,1.14663837,103260.0,103250.0,0.0024]
[1750461099306,1.33053044,103260.0,103250.0,0.002]
[1750461099500,1.33053044,103260.0,103250.0,0.0024]
[1750461100298,1.33053044,103260.0,103250.0,0.002]
[1750461100494,1.33053044,103260.0,103250.0,0.0024]
[1750461108205,0.96973044,103260.0,103250.0,0.0024]
[1750461108509,1.69133044,103260.0,103250.0,0.0024]
[1750461108710,1.83722984,103260.0,103250.0,0.0024]
[1750461108920,0.4518035,103240.0,103230.0,0.6850673]
[1750461109308,0.4836035,103240.0,103230.0,0.6842673]
[1750461109505,0.54145267,103240.0,103230.0,0.6846673]
[1750461109705,0.28335447,103240.0,103230.0,0.6846673]
[1750461109912,0.28335447,103240.0,103230.0,0.7155673]
[1750461109913,0.54145267,103240.0,103230.0,0.7155673]
[1750461110813,0.54562674,103240.0,103230.0,0.7165673]
[1750461111316,0.54662674,103240.0,103230.0,0.7185673]
[1750461112316,0.54862674,103240.0,103230.0,0.7185673]
[1750461112516,0.55062674,103240.0,103230.0,0.7175673]
[1750461118314,0.55062674,103240.0,103230.0,0.6691368]
[1750461118915,0.49277757,103240.0,103230.0,0.6691368]
[1750461119114,0.49277757,103240.0,103230.0,0.6382368]
[1750461119819,0.85357757,103240.0,103230.0,0.2774368]
[1750461120016,0.85357757,103240.0,103230.0,0.0353]
[1750461120315,0.76761908,103240.0,103230.0,0.002]
[1750461120521,0.96132438,103240.0,103230.0,0.0024]
[1750461120717,0.1937427,103220.0,103210.0,0.2241615]
[1750461121015,0.76840345,103220.0,103210.0,0.2896615]
[1750461121420,0.81934405,103220.0,103210.0,0.2900615]
[1750461121923,0.76320655,103220.0,103210.0,0.2910615]
[1750461122315,0.76420655,103220.0,103210.0,0.2930615]
[1750461122824,0.50587114,103220.0,103210.0,0.2930615]
[1750461123222,0.50587114,103220.0,103210.0,0.2926615]
[1750461123520,0.50587114,103220.0,103210.0,0.2930615]
[1750461123715,0.50587114,103220.0,103210.0,0.2626615]
[1750461123923,0.50587114,103220.0,103210.0,0.0689]
[1750461124519,0.2572428,103220.0,103210.0,0.2626617]
[1750461124719,0.57350386,103220.0,103210.0,0.6535617]
[1750461124920,0.57350386,103220.0,103210.0,0.2927617]
[1750461125424,0.51557673,103220.0,103210.0,0.0034]
[1750461125623,0.54767673,103220.0,103210.0,0.0034]
[1750461126026,0.5518508,103220.0,103210.0,0.0034]
[1750461126322,0.6305854,103220.0,103210.0,0.003]
[1750461126522,0.6305854,103220.0,103210.0,0.0034]
[1750461128126,0.68848688,103220.0,103210.0,0.0034]
[1750461128823,0.6305854,103220.0,103210.0,0.0034]
[1750461131030,0.68846654,103220.0,103210.0,0.0034]
[1750461131417,0.6305854,103220.0,103210.0,0.0034]
[1750461131823,0.6305854,103220.0,103210.0,0.1971617]
[1750461132630,0.6305854,103220.0,103210.0,0.0034]
[1750461133225,0.6305854,103220.0,103210.0,0.003]
[1750461133425,0.6305854,103220.0,103210.0,0.0034]
[1750461134034,0.37225147,103220.0,103210.0,0.0034]
[1750461134237,0.6305854,103220.0,103210.0,0.0034]
[1750461136031,0.37225147,103220.0,103210.0,0.1971617]
[1750461136337,0.6305854,103220.0,103210.0,0.1971617]
[1750461136539,0.31015147,103220.0,103210.0,0.48669563]
[1750461136733,0.36800034,103220.0,103210.0,0.6192617]
[1750461136930,0.36800034,103220.0,103210.0,0.87759563]
[1750461138033,0.36800034,103220.0,103210.0,0.6192617]
[1750461139848,0.62633427,103220.0,103210.0,0.2584617]
[1750461140048,0.62633427,103220.0,103210.0,0.6192617]
[1750461140240,0.65633427,103220.0,103210.0,0.6192617]
[1750461140947,0.65633427,103220.0,103210.0,0.2283617]
[1750461141142,0.71713427,103220.0,103210.0,0.2279617]
[1750461141446,0.71713427,103220.0,103210.0,0.2283617]
[1750461144545,0.6592854,103220.0,103210.0,0.2283617]
[1750461146052,0.6592854,103220.0,103210.0,0.5891617]
[1750461146749,0.6592854,103220.0,103210.0,0.2283617]
[1750461149548,0.73660728,103220.0,103210.0,0.2283617]
[1750461152859,0.99494283,103220.0,103210.0,0.2283617]
[1750461153255,0.96484283,103220.0,103210.0,0.5891617]
[1750461153451,0.64580829,103220.0,103210.0,0.84749644]
[1750461153651,0.64580829,103220.0,103210.0,0.87939644]
[1750461154861,0.38747355,103220.0,103210.0,0.87933299]
[1750461155161,0.38747355,103220.0,103210.0,0.6210617]
[1750461157753,0.31015167,103220.0,103210.0,0.6210617]
[1750461158556,0.38747355,103220.0,103210.0,0.6210617]
[1750461159759,0.31015167,103220.0,103210.0,0.6210617]
[1750461160263,0.38747355,103220.0,103210.0,0.6210617]
[1750461161961,0.31015167,103220.0,103210.0,0.6210617]
[1750461162463,0.31015167,103220.0,103210.0,0.87933299]
[1750461162664,0.31015167,103220.0,103210.0,0.6210617]
[1750461163460,0.11640877,103220.0,103210.0,1.2342217]
[1750461163662,0.38747355,103220.0,103210.0,1.49249299]
[1750461164466,0.38747355,103220.0,103210.0,1.2342217]
[1750461165066,0.64574484,103220.0,103210.0,1.2342217]
[1750461166269,0.38747355,103220.0,103210.0,1.2342217]
[1750461167469,0.67734484,103220.0,103210.0,1.2342217]
[1750461168661,0.67734484,103220.0,103210.0,1.2023217]
[1750461168860,0.70964484,103220.0,103210.0,1.2023217]
[1750461169670,0.74084484,103220.0,103210.0,0.1967617]
[1750461169872,0.74084484,103220.0,103210.0,0.1971617]
[1750461170369,0.74084484,103220.0,103210.0,0.1967617]
[1750461171068,0.74084484,103220.0,103210.0,0.1971617]
[1750461171871,1.10164484,103220.0,103210.0,0.0004]
[1750461172070,1.10164484,103220.0,103210.0,0.1941617]
[1750461172267,1.10164484,103220.0,103210.0,0.1937617]
[1750461172568,0.1937617,103210.0,103200.0,0.8012623]
[1750461172766,0.61288163,103210.0,103200.0,0.8004623]
[1750461172968,0.61288163,103210.0,103200.0,0.8008623]
[1750461173271,1.11901143,103210.0,103200.0,0.1937804]